Cogmind - Beta 12 @@@ ROGUE MODE // 2023.04.26 @ 22:18:03 Player: Ms Vella Result: Destroyed by G-47 Trooper with Particle Gun Performance ------------- Evolutions (0) 0 Regions Visited (1) 200 Robots Destroyed (12) 60 Value Destroyed (257) 257 Prototype IDs (0) 0 Alien Tech Used (0) 0 Bonus (0) 0 TOTAL SCORE: 517 Bonus ------- None Cogmind --------- Core Integrity 0/250 Matter 298/300 Energy 265/265 System Corruption 5% Temperature Cool (9) Movement Core (250) Ox4 Location -10/Materials Parts ------- > --- POWER (1) -------- Improved Ion Engine > --- PROPULSION (2) --- (None) > --- UTILITY (2) ------ Small Storage Unit > --- WEAPON (2) ------- Small Laser > --- INVENTORY (8) ---- Improved Ion Engine Peak State ------------ > --- POWER ------------ Improved Ion Engine > --- PROPULSION ------- Light Treads Light Treads > --- UTILITY ---------- Small Storage Unit > --- WEAPON ----------- EM Pulse Gun Light Assault Rifle > --- INVENTORY -------- Ion Engine Small Laser [Rating: 7] Favorites ----------- Power Improved Ion Engine Engine Improved Ion Engine Propulsion Light Treads Treads Light Treads Leg Aluminum Leg Utility Small Storage Unit Storage Small Storage Unit Weapon Light Assault Rifle Energy Gun EM Pulse Gun Ballistic Gun Light Assault Rifle Build | -11 -10 ------- Run | Jun Mat Slots Evolved . | . . Power . | . . Propulsion . | . . Utility . | . . Weapon . | . . Parts Attached 7 | 2 5 Power 2 | . 2 Engine 2 | . 2 Core . | . . Reactor . | . . Propulsion 4 | 2 2 Treads 2 | 2 . Leg 2 | . 2 Wheel . | . . Hover . | . . Flight . | . . Utility . | . . Device . | . . Storage . | . . Processor . | . . Hackware . | . . Protection . | . . Artifact . | . . Weapon 1 | . 1 Energy Gun 1 | . 1 Energy Cannon . | . . Ballistic Gun . | . . Ballistic Cannon . | . . Launcher . | . . Special Weapon . | . . Impact Weapon . | . . Slashing Weapon . | . . Piercing Weapon . | . . Special Melee Weapon . | . . Unidentified Prototypes . | . . Corrupted Parts 1 | . 1 System Corruption 5 | . 5 Parts Lost 6 | . 6 Power . | . . Propulsion 4 | . 4 Utility . | . . Weapon 2 | . 2 Highest Loss Streak 3 | . 3 To Critical Strikes . | . . Average Slot Usage (%) 71 | . 71 Engine 14 | . 14 Treads 19 | . 19 Leg 3 | . 3 Storage 14 | . 14 Energy Gun 11 | . 11 Ballistic Gun 7 | . 7 Naked Turns . | . . Heaviest Build 15 | 13 15 Greatest Support 40 | 40 40 Greatest Overweight (x) 4 | . 4 Average Overweight (x) . | . . Largest Inventory Capacity 8 | 8 8 Average Capacity 8 | 8 8 Most Carried 6 | 6 2 Average Carried 1 | 4 1 Final Capacity 8 | 8 8 Final Carried 2 | 2 1 Class Distribution -------------------- 100% | Mutant Dominant Class ---------------- Mutant | -10/Materials Resources | -11 -10 ----------- Run | Jun Mat Matter Collected 257 | 200 57 Remotely . | . . Salvage Created 303 | . 303 Parts 18 | . 18 Haulers Intercepted 1 | . 1 Recyclers Shooed . | . . Parts Field Recycled . | . . Retrieved Matter . | . . Parts Self-Destructed . | . . Prevented . | . . Kills | -11 -10 ------- Run | Jun Mat Combat Hostiles Destroyed 8 | . 8 Guns 6 | . 6 AOE 2 | . 2 Classes Destroyed 6 | . 6 Worker 1 | . 1 Builder 1 | . 1 Hauler 1 | . 1 Watcher 1 | . 1 Swarmer 3 | . 3 Grunt 5 | . 5 Best Kill Streak 7 | . 7 Combat Bots Only 6 | . 6 Max Kills in Single Turn 3 | . 3 Gunslinging . | . . Exploded 2 | . 2 Melee . | . . Uniques/NPCs Destroyed . | . . Combat | -11 -10 -------- Run | Jun Mat Damage Taken 1001 | . 1001 Core 255 | . 255 Absorbed by Shields . | . . Core Remaining (%) 100 | 100 . Volleys Fired 42 | . 42 Largest 2 | . 2 Hottest 60 | . 60 Shots Fired 50 | . 50 Gun 50 | . 50 Cannon . | . . Launcher . | . . Special . | . . Kinetic 22 | . 22 Thermal 19 | . 19 Explosive . | . . Electromagnetic 9 | . 9 Robot Hit Streak 7 | . 7 Robot Miss Streak 6 | . 6 Penetration Max . | . . Secondary Targets . | . . Shots Hit Robots 31 | . 31 Core Hits 16 | . 16 Critical Kills . | . . Critical Parts Destroyed . | . . Critical Strikes . | . . Melee Attacks . | . . Impact . | . . Slashing . | . . Piercing . | . . Sneak Attacks . | . . Combat Hostiles . | . . Follow-up Attacks . | . . Damage Inflicted 724 | . 724 Guns 359 | . 359 Cannons . | . . Explosions 363 | . 363 Melee . | . . Ramming 2 | . 2 Kinetic 117 | . 117 Thermal 238 | . 238 Explosive 274 | . 274 Electromagnetic 93 | . 93 Impact . | . . Slashing . | . . Piercing . | . . Highest Corruption 5 | . 5 Average Corruption 5 | . 5 Corruption Purged . | . . Corruption Blocked . | . . Effects 2 | . 2 Data Loss (minor) 1 | . 1 Weapon Failures 1 | . 1 Overload Shots . | . . Overflow Damage 30 | . 30 Projectiles . | . . Explosions 30 | . 30 Melee . | . . Knockbacks . | . . Impact . | . . Kinetic . | . . Secondary . | . . Self-Inflicted Damage . | . . Shots . | . . Rammed . | . . Targets Rammed 1 | . 1 Kicked 1 | . 1 Crushed . | . . Highest Temperature 152 | . 152 Average Temperature 48 | . 48 Received Heat Transfer 411 | . 411 Siege Activations . | . . Robots Corrupted . | . . Combat Hostiles . | . . Parts Fried . | . . Impact Corruptions . | . . Robots Melted . | . . Combat Hostiles . | . . Parts Melted . | . . Heat Transferred 450 | . 450 Parts Sabotaged . | . . Parts Stolen . | . . Parts Stripped . | . . Power Chain Reactions 1 | . 1 Missiles Intercepted . | . . Alert | -11 -10 ------- Run | Jun Mat Peak Influence 227 | . 227 Initial . | . . Average 116 | . 119 Maximum Alert Level 1 | . 1 Low Security (%) 72 | 100 71 Level 1 27 | . 28 Level 2 . | . . Level 3 . | . . Level 4 . | . . Level 5 . | . . High Security . | . . Max Security . | . . Squads Dispatched 1 | . 1 Investigation . | . . Extermination . | . . Reinforcement 1 | . 1 Assault . | . . Garrison . | . . Intercept . | . . Searches Triggered . | . . Construction Impeded . | . . Haulers Reinforced . | . . Active Scanning Responses . | . . Cargo Convoy Interrupts . | . . Stealth | -11 -10 --------- Run | Jun Mat Distress Signals 1 | . 1 Communications Jammed . | . . Distress Signals . | . . Times Spotted 14 | . 14 Peak Tracking Total 8 | . 8 Tactical Retreats . | . . Traps | -11 -10 ------- Run | Jun Mat Traps Triggered . | . . Indirectly . | . . Trap Hack Attempts . | . . Triggered . | . . Disarmed . | . . Reprogrammed . | . . Reused . | . . Traps Extracted . | . . Installed . | . . Triggered . | . . Machines | -11 -10 ---------- Run | Jun Mat Machines Disabled 2 | . 2 Max in Single Turn 1 | . 1 Machines Repaired . | . . Machines Sabotaged . | . . Overloaded Fab Kills . | . . Hacking | -11 -10 --------- Run | Jun Mat Machines Accessed 1 | . 1 Terminals 1 | . 1 Fabricators . | . . Repair Stations . | . . Recycling Units . | . . Scanalyzers . | . . Garrison Access . | . . Total Hacks 3 | . 3 Successful . | . . Failed 3 | . 3 Catastrophic . | . . Database Lockouts . | . . Manual 3 | . 3 Terminals 3 | . 3 Fabricators . | . . Repair Stations . | . . Recycling Units . | . . Scanalyzers . | . . Garrison Access . | . . Terminal Hacks . | . . Fabricator Hacks . | . . Repair Station Hacks . | . . Recycling Unit Hacks . | . . Scanalyzer . | . . Garrison Access Hacks . | . . Unauthorized Hacks . | . . Terminals . | . . Fabricators . | . . Repair Stations . | . . Recycling Units . | . . Scanalyzers . | . . Garrison Access . | . . Data Cores Recovered . | . . Used . | . . Hacking Detections 1 | . 1 Full Trace Events . | . . Feedback Events . | . . Feedback Blocked . | . . Robot Schematics Acquired . | . . Robots Built . | . . Authchips . | . . Time . | . . Total Robot Build Rating . | . . Part Schematics Acquired . | . . Parts Built . | . . Authchips . | . . Time . | . . Total Part Build Rating . | . . Parts Repaired . | . . Time . | . . Parts Recycled . | . . Recycled Matter . | . . Retrieved Matter . | . . Retrieved Components . | . . Parts Scanalyzed . | . . Part Schematics Acquired . | . . Parts Damaged . | . . Bothacking | -11 -10 ------------ Run | Jun Mat Used RIF Installer . | . . Robots Hacked . | . . Non-combat . | . . Combat . | . . Robot Hacks Applied . | . . Relay Couplers Released . | . . Fabnet Peak Effective % . | . . Robots Rewired . | . . Allies Hacked . | . . Hacks Repelled . | . . Allies | -11 -10 -------- Run | Jun Mat Total Allies . | . . Largest Group . | . . Highest-Rated Group . | . . Highest-Rated Ally . | . . Total Orders . | . . Ally Attacks . | . . Total Damage . | . . Kills . | . . Allies Corrupted . | . . Allies Melted . | . . Intel | -11 -10 ------- Run | Jun Mat Robot Analysis Total . | . . Derelict Logs Recovered . | . . Drone Launches . | . . Drone Recoveries . | . . Exploration | -11 -10 ------------- Run | Jun Mat Turns Passed 186 | 5 181 Spaces Moved 49 | 1 48 Core 1 | . 1 Treads 39 | 1 38 Legs 9 | . 9 Wheels . | . . Hover . | . . Flight . | . . Fastest Speed 120 | 160 120 Average Speed 165 | 160 166 Slowest Speed 250 | 160 250 Overloaded Moves . | . . Propulsion Burnouts . | . . Robots Hopped . | . . Cave-ins Triggered . | . . Exploration Rate (%) 8 | 1 15 Regions Visited 1 Branch Regions . Pre-discovered Areas . | . . Known Exits Taken . | . . Unknown Exits Taken 1 | 1 . Scrap Searched . | . . Spaces Dug . | . . Terrain Destroyed 22 | . 22 Melee . | . . Projectile . | . . AOE 22 | . 22 Terrain Rammed . | . . Walls Destroyed . | . . Machines Disabled . | . . Actions | -11 -10 --------- Run | Jun Mat Total 108 | 6 102 Wait 3 | . 3 Move 48 | . 48 Hop . | . . Pick Up 1 | . 1 Fast Attach 3 | . 3 Attach 3 | 2 1 Detach . | . . Swap 1 | . 1 Drop 6 | 4 2 Fire 42 | . 42 Melee . | . . Ram . | . . Kick 1 | . 1 Crush . | . . Escape Stasis . | . . Rewire . | . . Trap . | . . Miscellaneous . | . . Route ------- -11/Junkyard -10/Materials History --------- Turn | Location | Event 6 | -11/Junkyard | Discovered new exit (range 0) 6 | -11/Junkyard | Entered Materials 132 | -10/Materials | Core integrity fell below 50% 145 | -10/Materials | Lost 3 parts (1n2w) 174 | -10/Materials | Core integrity fell below 20% 187 | -10/Materials | Destroyed by G-47 Trooper with Particle Gun Last Messages --------------- 00163_ U-05 Engineer lays Concrete. 00164_ Kicked U-05 Engineer. 00166_ U-05 Engineer lays Concrete. 00166_ K-01 Serf collects debris. 00167_ U-05 Engineer lays Concrete. 00168_ Acquired Aluminum Leg. 00168_ U-05 Engineer lays Concrete. 00170_ K-01 Serf collects debris. 00173_ U-05 Engineer builds a Wall. 00175_ K-01 Serf collects debris. 00177_ Aluminum Leg destroyed. 00178_ U-05 Engineer builds a Door. 00178_ System corrupted: Sml. Laser failed to cycle. 00179_ U-05 Engineer builds a Wall. 00180_ K-01 Serf collects debris. 00180_ U-05 Engineer builds a Wall. 00182_ U-05 Engineer lays Concrete. 00185_ Aluminum Leg destroyed. 00185_ U-05 Engineer builds a Wall. 00185_ K-01 Serf collects debris. Map ----- +----------------------------------------------------+ | ?????????????????????????????????????????? | | ?????????????????????????????????????????? | | ?????????????????????????????????????????? | | ?????????????????????????????????????????? | | ?????????????????????????????????????????? | | ?????????????????????????????????????????? | | ?????????????????????????????????????????? | | ?????????????????????????????????????????? | | ?????????????????????????????????????????? | | ?????????????????????????????????????????? | | ?????????????????????????????????????????? | | ?????????????????????????????????????????? | | ?????????????????????????????????????????? | | ?????????????????????????????????????????? | | ?????????????????????????????????????????? | | ?????????????????????????????????????????? | | ?????????????????????????????????????????? | | ?????????????????????????????????????????? | | ?????????????????????????????????????????? | | ????????????########?????????????????????? | | ?????????# + #?????????????????????? | | ?????????# #u ! #?????????????????????? | | ?????? ?+ # #?????????????????????? | | ?????? # # [#?????????????????????? | | ??????" # ###u# #?????????????????????? | | ??????"" # @ ##????????????????????? | | ??????"" + k #????????????????????? | | ???????? # ##????????????????????? | | ?????????# !! ## ??????????????????? | | ?????????# %%! # | ???????????????? | | ?????????#[ !!! gg#######+## #???????? | | ?????????# [%u*%% ???????? | | ?????????# % ???????? | | ?????????# % ???????? | | ?????????#^ % ##### ###+#????????? | | ?????????# %[%#[#??? #????????????? | | ?????????# ##??????#????????????? | | ?????????# ##???????????????????? | | ?????????# ##???????????????????? | | ?????????# ###+####????????????????????? | | ?????????# #?# ??????????????????????? | | ?????????# #?# ????????????????????? | | ?????????# #?# T ??????????????????? | | ?????????# #?? """ " ??????????????????? | | ?????????# #?? """ ??????????????????? | | ?????????# #?? """ ??????????????????? | | ?????????# ##? ???? #?????????????????? | | ?????????# T#? "???????????????????????? | | ?????????# ##? "???????????????????????? | | ?????????# #?? ????????????????????????? | +----------------------------------------------------+ Best States ------------- Heat Dissipation 25 Energy Generation 12 Energy Capacity 265 Matter Stores 295 Matter Capacity 300 Sight Range 16 Terrain Scan Density 10 Evasion (%) 40 Recoil Reduction 2 Item Schematics ----------------- None Robot Schematics ------------------ None Fabricated ------------ Nothing Alien Tech Used ----------------- None Achievements -------------- None Challenges ------------ None Game ------ Seed GreatProcessingLoader Manual? 0 Play Time 00:05:31 Cumulative 1052.5 hours Start 2023.04.26 @ 22:15:04 End 2023.04.26 @ 22:18:03 Sessions 1 Manual Loads 0 Difficulty Rogue Special Mode None Game No. 232 Rogue 16 Adventurer 216 Explorer 0 Win Type - Total 5 Types 4/0/1/0/0/0/0/0/0 Lore% 71 Gallery% 84 Achievement% 66 Wizard Run 0 Options --------- ASCII 0 Keyboard 0 Movement Mouse Keybinds 0 Fullscreen 0 Font 16/SmallcapsGlow Map View 76x50 Tactical HUD 1 Map Filters NONE Filters BRIGHTNESS(125)|SATURATION(75)|LOW_CONTRAST(13,24,33)|SHIFT_HUE(130) Steam 1 RUN: 60be85f4-715a-4c82-8c79-2c3b551348a5